[Event "I Liga Centralne Srbije"]
[Site "Bajina Bašta, Serbia"]
[Date "2020.10.14"]
[Round "7.5"]
[White "Celik, Hasan Huseyin"]
[Black "Ristic, Nebojsa B"]
[Result "1/2-1/2"]
[ECO "B06"]
[WhiteElo "1970"]
[BlackElo "2312"]
[Annotator "Knez"]
[PlyCount "109"]
[EventDate "2020.??.??"]
[TimeControl "90"]
[WhiteClock "0:02:57"]
[BlackClock "0:04:13"]

1. e4 {[%emt 0:00:00]} d6 {[%emt 0:00:00]} 2. d4 {[%emt 0:00:00]} g6 {[%emt 0:
00:00]} 3. Nc3 {[%emt 0:00:00]} Bg7 {[%emt 0:00:00]} 4. Be3 {[%emt 0:00:00]} a6
{[%emt 0:00:00]} 5. h4 {[%emt 0:00:00]} h6 {[%emt 0:00:00]} 6. a4 {[%emt 0:00:
00]} Nf6 {[%emt 0:00:00]} 7. f3 {[%emt 0:00:00]} Nc6 {[%emt 0:00:00]} 8. Qd2 {
[%emt 0:00:00]} b6 {[%emt 0:00:00]} 9. Nge2 {[%emt 0:00:00]} Bb7 {[%emt 0:00:
00]} 10. g4 {[%emt 0:00:00]} e6 {[%emt 0:00:00]} 11. Ng3 {[%emt 0:00:00]} Ne7 {
[%emt 0:00:00]} 12. Be2 {[%emt 0:00:00]} d5 {[%emt 0:00:00]} 13. O-O-O {
[%emt 0:00:00]} Nd7 {[%emt 0:00:00]} 14. Rhf1 {[%emt 0:00:00]} c5 {[%emt 0:00:
00]} 15. f4 {[%emt 0:00:00]} Qc7 {[%emt 0:00:00]} 16. Kb1 {[%emt 0:00:00]}
O-O-O {[%emt 0:00:00]} 17. exd5 {[%emt 0:00:00]} Nxd5 {[%emt 0:00:00]} 18. Nxd5
{[%emt 0:00:00]} exd5 {[%emt 0:00:00]} 19. a5 {[%emt 0:00:00]} c4 {[%emt 0:00:
00]} 20. axb6 {[%emt 0:00:00]} Nxb6 {[%emt 0:00:00]} 21. Rde1 {[%emt 0:00:00]}
Na4 {[%emt 0:00:00]} 22. c3 {[%emt 0:00:00]} Rhe8 {[%emt 0:00:00]} 23. Bd1 {
[%emt 0:00:00]} Bc6 {[%emt 0:00:00]} 24. h5 {[%emt 0:00:00]} Qb8 {[%emt 0:00:
00]} 25. Qc2 {[%emt 0:00:00]} Re7 {[%emt 0:00:00]} 26. Bc1 {[%emt 0:00:00]} Rb7
{[%emt 0:00:00]} 27. hxg6 {[%emt 0:00:00]} fxg6 {[%emt 0:00:00]} 28. Re6 {
[%emt 0:00:00]} Rd6 {[%emt 0:00:00]} 29. Rfe1 {[%emt 0:00:32]} Rb3 {[%emt 0:00:
00]} 30. Qxg6 {[%emt 0:00:00]} Nxc3+ {[%emt 0:00:00]} 31. Kc2 {[%emt 0:00:00]}
Nxd1 {[%emt 0:00:00]} 32. Kxd1 {[%emt 0:00:00]} Rxg3 {[%emt 0:00:00]} 33. Re8+
{[%emt 0:00:00]} Bxe8 {[%emt 0:00:00]} 34. Rxe8+ {[%emt 0:00:00]} Rd8 {[%emt 0:
00:00]} 35. Qe6+ {[%emt 0:00:00]} Kb7 {[%emt 0:00:00]} 36. Re7+ {[%emt 0:00:00]
} Qc7 {[%emt 0:00:00]} 37. Rxc7+ {[%emt 0:00:00]} Kxc7 {[%emt 0:00:00]} 38. f5
{[%emt 0:00:00]} Rd3+ {[%emt 0:00:00]} 39. Kc2 {[%emt 0:00:00]} Rf3 {[%emt 0:
00:39]} 40. Bd2 {[%emt 0:00:00]} Rf2 {[%emt 0:00:05]} 41. Qe3 {[%emt 0:00:00]}
Rg2 {[%emt 0:00:00]} 42. Qf3 {[%emt 0:00:00]} Rxd2+ {[%emt 0:00:00]} 43. Kxd2 {
[%emt 0:00:00]} Rd6 {[%emt 0:00:00]} 44. Qe3 {[%emt 0:00:00]} Kd7 {[%emt 0:00:
00]} 45. Kc2 {[%emt 0:00:00]} Rb6 {[%emt 0:00:00]} 46. Qd2 {[%emt 0:00:00]} Rd6
{[%emt 0:00:00]} 47. Qf4 {[%emt 0:00:00]} Rb6 {[%emt 0:00:00]} 48. Qf3 {
[%emt 0:00:00]} Rd6 {[%emt 0:00:00]} 49. Kc3 {[%emt 0:00:00]} Bf6 {[%emt 0:00:
00]} 50. Qh1 {[%emt 0:00:00]} Ke7 {[%emt 0:00:00]} 51. Qh2 {[%emt 0:00:00]} Kd7
{[%emt 0:00:00]} 52. Qf4 {[%emt 0:00:00]} Bg5 {[%emt 0:00:00]} 53. Qe5 {
[%emt 0:00:00]} Bf6 {[%emt 0:00:00]} 54. Qf4 {[%emt 0:00:00]} Bg5 {[%emt 0:00:
00]} 55. Qe5 {[%emt 0:00:23]} 1/2-1/2

[Event "I Liga Centralne Srbije"]
[Site "Bajina Bašta, Serbia"]
[Date "2020.10.14"]
[Round "7.5"]
[White "Marinkovic, Ivan"]
[Black "Djordjevic, Miroslav"]
[Result "1-0"]
[ECO "B11"]
[WhiteElo "2451"]
[BlackElo "1885"]
[Annotator "Knez"]
[PlyCount "97"]
[EventDate "2020.??.??"]
[TimeControl "90"]
[WhiteClock "0:01:57"]
[BlackClock "0:17:36"]

1. e4 {[%emt 0:00:00]} c6 {[%emt 0:00:00]} 2. Nc3 {[%emt 0:00:00]} d5 {[%emt 0:
00:00]} 3. Nf3 {[%emt 0:00:00]} dxe4 {[%emt 0:00:00]} 4. Nxe4 {[%emt 0:00:00]}
Nf6 {[%emt 0:00:00]} 5. Qe2 {[%emt 0:00:00]} Nxe4 {[%emt 0:00:00]} 6. Qxe4 {
[%emt 0:00:00]} Nd7 {[%emt 0:00:00]} 7. Bc4 {[%emt 0:00:00]} Nf6 {[%emt 0:00:
00]} 8. Ne5 {[%emt 0:00:00]} e6 {[%emt 0:00:00]} 9. Qe2 {[%emt 0:00:00]} Bd6 {
[%emt 0:00:00]} 10. d4 {[%emt 0:00:00]} O-O {[%emt 0:00:00]} 11. O-O {[%emt 0:
00:00]} Nd5 {[%emt 0:00:00]} 12. Bb3 {[%emt 0:00:00]} Qc7 {[%emt 0:00:00]} 13.
c4 {[%emt 0:00:00]} Bxe5 {[%emt 0:00:00]} 14. Qxe5 {[%emt 0:00:00]} Qxe5 {
[%emt 0:00:00]} 15. dxe5 {[%emt 0:00:00]} Ne7 {[%emt 0:00:00]} 16. Rd1 {
[%emt 0:00:00]} b6 {[%emt 0:00:00]} 17. c5 {[%emt 0:00:00]} Nd5 {[%emt 0:00:00]
} 18. Be3 {[%emt 0:00:00]} Rb8 {[%emt 0:00:00]} 19. Rac1 {[%emt 0:00:00]} Bd7 {
[%emt 0:00:00]} 20. Bd4 {[%emt 0:00:00]} b5 {[%emt 0:00:00]} 21. Bc3 {[%emt 0:
00:00]} Rfc8 {[%emt 0:00:00]} 22. Ba5 {[%emt 0:00:00]} Be8 {[%emt 0:00:00]} 23.
g3 {[%emt 0:00:00]} Rb7 {[%emt 0:00:00]} 24. Rd4 {[%emt 0:00:00]} f5 {[%emt 0:
00:00]} 25. exf6 {[%emt 0:00:00]} gxf6 {[%emt 0:00:00]} 26. Re1 {[%emt 0:00:00]
} Re7 {[%emt 0:00:00]} 27. Bxd5 {[%emt 0:00:00]} cxd5 {[%emt 0:00:00]} 28. Rxd5
{[%emt 0:00:00]} exd5 {[%emt 0:00:00]} 29. Rxe7 {[%emt 0:00:00]} Bf7 {[%emt 0:
00:00]} 30. Bc3 {[%emt 0:00:00]} Rxc5 {[%emt 0:00:00]} 31. Bxf6 {[%emt 0:00:00]
} Rc6 {[%emt 0:00:00]} 32. Bc3 {[%emt 0:00:00]} a6 {[%emt 0:00:00]} 33. a3 {
[%emt 0:00:00]} Rc4 {[%emt 0:00:00]} 34. Bf6 {[%emt 0:00:00]} Rc6 {[%emt 0:00:
00]} 35. Be5 {[%emt 0:00:00]} Re6 {[%emt 0:00:00]} 36. Rxe6 {[%emt 0:00:00]}
Bxe6 {[%emt 0:00:00]} 37. f3 {[%emt 0:00:00]} Kf7 {[%emt 0:00:00]} 38. g4 {
[%emt 0:00:00]} Bd7 {[%emt 0:00:00]} 39. Kf2 {[%emt 0:00:00]} Ke6 {[%emt 0:00:
00]} 40. Bd4 {[%emt 0:00:00]} Kf7 {[%emt 0:00:00]} 41. Kg3 {[%emt 0:00:00]} Kg6
{[%emt 0:00:00]} 42. b4 {[%emt 0:00:00]} Kg5 {[%emt 0:00:00]} 43. f4+ {[%emt 0:
00:00]} Kg6 {[%emt 0:00:00]} 44. f5+ {[%emt 0:00:00]} Kf7 {[%emt 0:00:00]} 45.
Kf4 {[%emt 0:00:00]} Bc8 {[%emt 0:00:24]} 46. g5 {[%emt 0:00:00]} Bd7 {[%emt 0:
00:00]} 47. h4 {[%emt 0:00:00]} Bc8 {[%emt 0:00:00]} 48. h5 {[%emt 0:00:00]}
Bd7 {[%emt 0:00:00]} 49. g6+ {[%emt 0:00:00]} 1-0

[Event "I Liga Centralne Srbije"]
[Site "Bajina Bašta, Serbia"]
[Date "2020.10.14"]
[Round "7.5"]
[White "Milic, Slobodan"]
[Black "Novoselski, Zoran"]
[Result "0-1"]
[ECO "A40"]
[WhiteElo "1888"]
[BlackElo "2318"]
[Annotator "Knez"]
[PlyCount "76"]
[EventDate "2020.??.??"]
[TimeControl "90"]

1. d4 {[%emt 3:09:29]} e6 {[%emt 0:01:16]} 2. c4 {[%emt 0:00:32]} b6 {[%emt 0:
00:38]} 3. Bf4 {[%emt 0:00:48]} Bb7 {[%emt 0:00:42]} 4. Nf3 {[%emt 0:03:28]} f5
{[%emt 0:00:33]} 5. e3 {[%emt 0:05:49]} Nf6 {[%emt 0:00:18]} 6. Nc3 {[%emt 0:
01:11]} Bb4 {[%emt 0:01:23]} 7. Qb3 {[%emt 0:00:43]} a5 {[%emt 0:01:55]} 8. a3
{[%emt 0:00:28]} Bxc3+ {[%emt 0:00:52]} 9. Qxc3 {[%emt 0:00:24]} Ne4 {[%emt 0:
00:12]} 10. Qc2 {[%emt 0:00:33]} d6 {[%emt 0:00:15]} 11. h4 {[%emt 0:03:49]}
Nd7 {[%emt 0:01:00]} 12. Ng5 {[%emt 0:11:44]} Qe7 {[%emt 0:00:51]} 13. Nxe4 {
[%emt 0:11:50]} Bxe4 {[%emt 0:01:56]} 14. Qc3 {[%emt 0:01:10]} e5 {[%emt 0:01:
57]} 15. Bg5 {[%emt 0:27:47]} Qf7 {[%emt 0:01:25]} 16. h5 {[%emt 0:10:47]} h6 {
[%emt 0:01:22]} 17. Bh4 {[%emt 0:00:59]} O-O {[%emt 0:08:32]} 18. f3 {[%emt 0:
04:56]} Bb7 {[%emt 0:00:22]} 19. Bf2 {[%emt 0:02:43]} e4 {[%emt 0:03:18]} 20.
f4 {[%emt 0:00:43]} Nf6 {[%emt 0:00:25]} 21. Be2 {[%emt 0:00:24]} d5 {[%emt 0:
00:46]} 22. b3 {[%emt 0:03:35]} a4 {[%emt 0:03:05]} 23. b4 {[%emt 0:01:42]}
dxc4 {[%emt 0:00:28]} 24. Bxc4 {[%emt 0:00:25]} Bd5 {[%emt 0:00:38]} 25. Be2 {
[%emt 0:00:19]} Rfc8 {[%emt 0:00:44]} 26. Rc1 {[%emt 0:02:08]} Kh8 {[%emt 0:01:
52]} 27. Kf1 {[%emt 0:00:59]} Qe8 {[%emt 0:00:34]} 28. Kg1 {[%emt 0:00:46]} c6
{[%emt 0:01:19]} 29. g3 {[%emt 0:00:37]} Bf7 {[%emt 0:00:23]} 30. Rh4 {[%emt 0:
01:08]} Bxh5 {[%emt 0:01:19]} 31. Bxh5 {[%emt 0:00:39]} Nxh5 {[%emt 0:00:10]}
32. g4 {[%emt 0:00:48]} fxg4 {[%emt 0:00:29]} 33. Rxg4 {[%emt 0:00:14]} Qe6 {
[%emt 0:00:56]} 34. Rh4 {[%emt 0:00:18]} Nf6 {[%emt 0:01:13]} 35. Kg2 {[%emt 0:
00:47]} Ra7 {[%emt 0:02:18]} 36. Rch1 {[%emt 0:00:43]} Rac7 {[%emt 0:00:37]}
37. Qc2 {[%emt 0:00:45]} c5 {[%emt 0:01:22]} 38. dxc5 {[%emt 0:01:24]} bxc5 {
[%emt 0:00:08]} 0-1

[Event "I Liga Centralne Srbije"]
[Site "Bajina Bašta, Serbia"]
[Date "2020.10.14"]
[Round "7.5"]
[White "Gavrilovic, Leonardo"]
[Black "Banjovic, Sasa"]
[Result "0-1"]
[ECO "A96"]
[WhiteElo "2246"]
[BlackElo "2121"]
[Annotator "Knez"]
[PlyCount "112"]
[EventDate "2020.??.??"]
[TimeControl "90"]

1. Nf3 {[%emt 0:06:28]} f5 {[%emt 0:00:14]} 2. c4 {[%emt 0:00:53]} Nf6 {
[%emt 0:00:13]} 3. g3 {[%emt 0:00:22]} d6 {[%emt 0:00:06]} 4. d4 {[%emt 0:00:
20]} e6 {[%emt 0:00:06]} 5. Nc3 {[%emt 0:00:29]} Be7 {[%emt 0:00:08]} 6. Qc2 {
[%emt 0:00:35]} O-O {[%emt 0:00:08]} 7. Bg2 {[%emt 0:00:12]} a5 {[%emt 0:00:13]
} 8. O-O {[%emt 0:00:47]} Nc6 {[%emt 0:00:04]} 9. Rd1 {[%emt 0:10:17]} Qe8 {
[%emt 0:00:18]} 10. e4 {[%emt 0:00:48]} e5 {[%emt 0:07:23]} 11. dxe5 {[%emt 0:
12:09]} dxe5 {[%emt 0:00:56]} 12. exf5 {[%emt 0:25:23]} Qh5 {[%emt 0:03:56]}
13. Nh4 {[%emt 0:15:13]} Nd4 {[%emt 0:06:40]} 14. Qd3 {[%emt 0:01:07]} Nxf5 {
[%emt 0:00:53]} 15. Nxf5 {[%emt 0:00:17]} Bxf5 {[%emt 0:00:04]} 16. Qe2 {
[%emt 0:00:43]} Qxe2 {[%emt 0:18:20]} 17. Nxe2 {[%emt 0:00:50]} c6 {[%emt 0:00:
05]} 18. Be3 {[%emt 0:00:54]} Ng4 {[%emt 0:04:11]} 19. Nc3 {[%emt 0:04:26]}
Nxe3 {[%emt 0:01:39]} 20. fxe3 {[%emt 0:00:41]} Bc5 {[%emt 0:00:50]} 21. Re1 {
[%emt 0:00:37]} Bd3 {[%emt 0:01:00]} 22. b3 {[%emt 0:01:22]} Bb4 {[%emt 0:02:
33]} 23. Rac1 {[%emt 0:02:55]} Rad8 {[%emt 0:00:47]} 24. Na4 {[%emt 0:04:11]}
Bxe1 {[%emt 0:02:25]} 25. Rxe1 {[%emt 0:00:04]} Bf5 {[%emt 0:00:34]} 26. Nc5 {
[%emt 0:00:58]} Rf7 {[%emt 0:02:12]} 27. Be4 {[%emt 0:01:07]} Bxe4 {[%emt 0:01:
39]} 28. Nxe4 {[%emt 0:00:07]} Rd3 {[%emt 0:00:17]} 29. Kg2 {[%emt 0:00:21]} b6
{[%emt 0:00:20]} 30. Re2 {[%emt 0:00:09]} Kf8 {[%emt 0:00:14]} 31. Ng5 {
[%emt 0:00:13]} Rfd7 {[%emt 0:06:24]} 32. Nxh7+ {[%emt 0:00:18]} Ke7 {[%emt 0:
00:32]} 33. Ng5 {[%emt 0:00:13]} a4 {[%emt 0:00:15]} 34. Ne4 {[%emt 0:01:50]}
axb3 {[%emt 0:00:21]} 35. axb3 {[%emt 0:00:04]} Rxb3 {[%emt 0:00:12]} 36. h4 {
[%emt 0:00:10]} Rd1 {[%emt 0:02:11]} 37. Kf3 {[%emt 0:00:58]} Rc1 {[%emt 0:00:
40]} 38. c5 {[%emt 0:00:25]} b5 {[%emt 0:01:02]} 39. g4 {[%emt 0:00:41]} Rf1+ {
[%emt 0:00:41]} 40. Kg3 {[%emt 0:00:34]} Rf8 {[%emt 0:00:11]} 41. h5 {[%emt 0:
00:20]} Ke6 {[%emt 0:01:40]} 42. Kh4 {[%emt 0:02:42]} Kd5 {[%emt 0:02:57]} 43.
Ng5 {[%emt 0:00:07]} Re8 {[%emt 0:00:09]} 44. Rd2+ {[%emt 0:01:47]} Kxc5 {
[%emt 0:00:42]} 45. Rd7 {[%emt 0:00:09]} Rxe3 {[%emt 0:00:39]} 46. Rxg7 {
[%emt 0:00:06]} Re1 {[%emt 0:00:42]} 47. h6 {[%emt 0:01:24]} Rh1+ {[%emt 0:03:
38]} 48. Nh3 {[%emt 0:00:05]} e4 {[%emt 0:01:02]} 49. h7 {[%emt 0:00:25]} Rh8 {
[%emt 0:00:07]} 50. g5 {[%emt 0:04:33]} e3 {[%emt 0:00:13]} 51. g6 {[%emt 0:00:
09]} e2 {[%emt 0:00:10]} 52. Re7 {[%emt 0:00:09]} e1=Q+ {[%emt 0:00:10]} 53.
Rxe1 {[%emt 0:00:20]} Rxe1 {[%emt 0:00:01]} 54. Ng5 {[%emt 0:00:15]} Re7 {
[%emt 0:00:41]} 55. Nf7 {[%emt 0:00:17]} Rxf7 {[%emt 0:00:10]} 56. Kh5 {
[%emt 0:00:22]} Re7 {[%emt 0:00:02]} 0-1

[Event "I Liga Centralne Srbije"]
[Site "Bajina Bašta, Serbia"]
[Date "2020.10.14"]
[Round "7.5"]
[White "Dimitrijevic, Zoran"]
[Black "Roljevic, Djordje"]
[Result "1/2-1/2"]
[ECO "E19"]
[WhiteElo "2088"]
[BlackElo "2177"]
[Annotator "Knez"]
[PlyCount "94"]
[EventDate "2020.??.??"]
[TimeControl "90"]
[WhiteClock "0:36:27"]
[BlackClock "0:53:35"]

1. Nf3 {[%emt 0:00:00]} Nf6 {[%emt 0:00:00]} 2. d4 {[%emt 0:00:00]} e6 {
[%emt 0:00:00]} 3. c4 {[%emt 0:00:00]} b6 {[%emt 0:00:00]} 4. g3 {[%emt 0:00:
00]} Bb7 {[%emt 0:00:00]} 5. Bg2 {[%emt 0:00:00]} c5 {[%emt 0:00:00]} 6. e3 {
[%emt 0:00:00]} Be7 {[%emt 0:00:00]} 7. O-O {[%emt 0:00:00]} O-O {[%emt 0:00:
00]} 8. Nc3 {[%emt 0:00:00]} Ne4 {[%emt 0:00:00]} 9. Qc2 {[%emt 0:00:00]} Nxc3
{[%emt 0:00:00]} 10. Qxc3 {[%emt 0:00:00]} Bf6 {[%emt 0:00:00]} 11. Rd1 {
[%emt 0:00:00]} Qc7 {[%emt 0:00:00]} 12. b3 {[%emt 0:00:00]} Nc6 {[%emt 0:00:
00]} 13. Bb2 {[%emt 0:00:00]} Rac8 {[%emt 0:00:00]} 14. Rac1 {[%emt 0:00:00]}
Nb4 {[%emt 0:00:00]} 15. Ra1 {[%emt 0:00:00]} Be4 {[%emt 0:00:00]} 16. Ne1 {
[%emt 0:00:00]} Bxg2 {[%emt 0:00:00]} 17. Nxg2 {[%emt 0:00:00]} Rfd8 {[%emt 0:
00:00]} 18. a3 {[%emt 0:00:00]} Nc6 {[%emt 0:00:00]} 19. Rac1 {[%emt 0:00:00]}
d5 {[%emt 0:00:00]} 20. Qc2 {[%emt 0:00:00]} dxc4 {[%emt 0:00:00]} 21. Qxc4 {
[%emt 0:00:00]} Qb7 {[%emt 0:00:00]} 22. d5 {[%emt 0:00:00]} Bxb2 {[%emt 0:00:
00]} 23. dxc6 {[%emt 0:00:00]} Qxc6 {[%emt 0:00:00]} 24. Rb1 {[%emt 0:00:00]}
Bxa3 {[%emt 0:00:00]} 25. Qa6 {[%emt 0:00:00]} Bb2 {[%emt 0:00:00]} 26. Qxa7 {
[%emt 0:00:00]} Bf6 {[%emt 0:00:00]} 27. Qa2 {[%emt 0:00:00]} g6 {[%emt 0:00:
00]} 28. Qe2 {[%emt 0:00:00]} b5 {[%emt 0:00:00]} 29. Ne1 {[%emt 0:00:00]} c4 {
[%emt 0:00:00]} 30. bxc4 {[%emt 0:00:00]} bxc4 {[%emt 0:00:00]} 31. Nc2 {
[%emt 0:00:00]} Qa4 {[%emt 0:00:00]} 32. Rxd8+ {[%emt 0:00:00]} Bxd8 {[%emt 0:
00:00]} 33. Kg2 {[%emt 0:00:00]} Qa2 {[%emt 0:00:00]} 34. Rb7 {[%emt 0:00:00]}
c3 {[%emt 0:00:00]} 35. Rd7 {[%emt 0:00:00]} Bf6 {[%emt 0:00:00]} 36. Qd3 {
[%emt 0:00:00]} Qc4 {[%emt 0:00:00]} 37. Qxc4 {[%emt 0:00:00]} Rxc4 {[%emt 0:
00:00]} 38. Kf3 {[%emt 0:00:00]} Ra4 {[%emt 0:00:00]} 39. Ke2 {[%emt 0:00:00]}
Ra2 {[%emt 0:00:00]} 40. Kd1 {[%emt 0:00:00]} Rb2 {[%emt 0:00:00]} 41. Kc1 {
[%emt 0:00:00]} h5 {[%emt 0:00:00]} 42. Rc7 {[%emt 0:00:00]} Kf8 {[%emt 0:00:
00]} 43. h4 {[%emt 0:00:00]} Ke8 {[%emt 0:00:00]} 44. f4 {[%emt 0:00:00]} e5 {
[%emt 0:00:00]} 45. f5 {[%emt 0:00:00]} e4 {[%emt 0:00:00]} 46. fxg6 {[%emt 0:
00:00]} fxg6 {[%emt 0:00:00]} 47. Rc4 {[%emt 0:00:00]} Rb5 {[%emt 0:00:00]}
1/2-1/2

[Event "I Liga Centralne Srbije"]
[Site "Bajina Bašta, Serbia"]
[Date "2020.10.14"]
[Round "7.6"]
[White "Dudin, Gleb"]
[Black "Delchev, Aleksander"]
[Result "1/2-1/2"]
[ECO "A21"]
[WhiteElo "2386"]
[BlackElo "2548"]
[Annotator "Knez"]
[PlyCount "95"]
[EventDate "2020.??.??"]
[TimeControl "90"]
[WhiteClock "0:11:58"]
[BlackClock "0:01:35"]

1. d4 {[%emt 0:00:00]} d6 {[%emt 0:00:00]} 2. c4 {[%emt 0:00:00]} e5 {[%emt 0:
00:00]} 3. Nf3 {[%emt 0:00:00]} e4 {[%emt 0:00:00]} 4. Ng5 {[%emt 0:00:00]} f5
{[%emt 0:00:00]} 5. Nc3 {[%emt 0:00:00]} c6 {[%emt 0:00:00]} 6. Nh3 {[%emt 0:
00:00]} Be7 {[%emt 0:00:00]} 7. f3 {[%emt 0:00:00]} Nf6 {[%emt 0:00:00]} 8. Bg5
{[%emt 0:00:00]} O-O {[%emt 0:00:00]} 9. e3 {[%emt 0:00:00]} exf3 {[%emt 0:00:
00]} 10. Qxf3 {[%emt 0:00:00]} Ng4 {[%emt 0:00:00]} 11. Bf4 {[%emt 0:00:00]}
Bh4+ {[%emt 0:00:00]} 12. Kd2 {[%emt 0:00:00]} Na6 {[%emt 0:00:00]} 13. Bd3 {
[%emt 0:00:00]} Nb4 {[%emt 0:00:00]} 14. Bb1 {[%emt 0:00:00]} Ne5 {[%emt 0:00:
00]} 15. Qe2 {[%emt 0:00:00]} Be6 {[%emt 0:00:00]} 16. b3 {[%emt 0:00:00]} Ng6
{[%emt 0:00:00]} 17. Bg3 {[%emt 0:00:00]} Bf6 {[%emt 0:00:00]} 18. a3 {[%emt 0:
00:00]} Na6 {[%emt 0:00:00]} 19. Bd3 {[%emt 0:00:00]} c5 {[%emt 0:00:00]} 20.
Kc2 {[%emt 0:00:00]} Nc7 {[%emt 0:00:00]} 21. d5 {[%emt 0:00:00]} Bc8 {[%emt 0:
00:00]} 22. Raf1 {[%emt 0:00:00]} Bxc3 {[%emt 0:00:00]} 23. Kxc3 {[%emt 0:00:
00]} b5 {[%emt 0:00:00]} 24. Qh5 {[%emt 0:00:00]} Qf6+ {[%emt 0:00:00]} 25. Kc2
{[%emt 0:00:00]} b4 {[%emt 0:00:00]} 26. axb4 {[%emt 0:00:00]} Na6 {[%emt 0:00:
00]} 27. Ng5 {[%emt 0:00:00]} Nxb4+ {[%emt 0:00:00]} 28. Kb1 {[%emt 0:00:00]}
h6 {[%emt 0:00:00]} 29. Ne4 {[%emt 0:00:00]} Qd8 {[%emt 0:00:00]} 30. Qxg6 {
[%emt 0:00:00]} Nxd3 {[%emt 0:00:00]} 31. Bxd6 {[%emt 0:00:00]} Qb6 {[%emt 0:
00:00]} 32. Kc2 {[%emt 0:00:00]} Rb8 {[%emt 0:00:00]} 33. Kxd3 {[%emt 0:00:40]}
Qxb3+ {[%emt 0:00:00]} 34. Nc3 {[%emt 0:00:09]} Ba6 {[%emt 0:00:00]} 35. Qe6+ {
[%emt 0:00:06]} Kh8 {[%emt 0:00:00]} 36. Rf4 {[%emt 0:00:00]} Rf6 {[%emt 0:00:
00]} 37. Rb1 {[%emt 0:00:00]} Qxb1+ {[%emt 0:00:00]} 38. Nxb1 {[%emt 0:00:00]}
Rxe6 {[%emt 0:00:00]} 39. dxe6 {[%emt 0:00:00]} Rd8 {[%emt 0:00:00]} 40. Rxf5 {
[%emt 0:00:02]} Rxd6+ {[%emt 0:00:00]} 41. Kc3 {[%emt 0:00:00]} Rxe6 {[%emt 0:
00:00]} 42. Rxc5 {[%emt 0:00:00]} Rxe3+ {[%emt 0:00:00]} 43. Kd2 {[%emt 0:00:
02]} Re4 {[%emt 0:00:00]} 44. Kd3 {[%emt 0:00:00]} Rh4 {[%emt 0:00:00]} 45. Rc7
{[%emt 0:00:00]} Rxh2 {[%emt 0:00:00]} 46. Rxa7 {[%emt 0:00:00]} Bxc4+ {
[%emt 0:00:00]} 47. Kxc4 {[%emt 0:00:00]} Rxg2 {[%emt 0:00:00]} 48. Nc3 {
[%emt 0:00:00]} 1/2-1/2

[Event "I Liga Centralne Srbije"]
[Site "Bajina Bašta, Serbia"]
[Date "2020.10.14"]
[Round "7.6"]
[White "Radovanovic, Mihajlo"]
[Black "Djordjevic, Vuk"]
[Result "1-0"]
[ECO "A17"]
[WhiteElo "2457"]
[BlackElo "2347"]
[Annotator "Knez"]
[PlyCount "69"]
[EventDate "2020.??.??"]
[TimeControl "90"]
[WhiteClock "0:02:10"]
[BlackClock "0:24:29"]

1. Nf3 {[%emt 0:00:00]} Nf6 {[%emt 0:00:00]} 2. c4 {[%emt 0:00:00]} e6 {
[%emt 0:00:00]} 3. Nc3 {[%emt 0:00:00]} Bb4 {[%emt 0:00:00]} 4. Qc2 {[%emt 0:
00:00]} d6 {[%emt 0:00:00]} 5. a3 {[%emt 0:00:00]} Bxc3 {[%emt 0:00:00]} 6.
Qxc3 {[%emt 0:00:00]} O-O {[%emt 0:00:00]} 7. e3 {[%emt 0:00:00]} b6 {[%emt 0:
00:00]} 8. Be2 {[%emt 0:00:00]} Bb7 {[%emt 0:00:00]} 9. O-O {[%emt 0:00:00]}
Nbd7 {[%emt 0:00:00]} 10. b4 {[%emt 0:00:00]} Ne4 {[%emt 0:00:00]} 11. Qc2 {
[%emt 0:00:00]} f5 {[%emt 0:00:00]} 12. d3 {[%emt 0:00:00]} Ng5 {[%emt 0:00:00]
} 13. Nxg5 {[%emt 0:00:00]} Qxg5 {[%emt 0:00:00]} 14. f3 {[%emt 0:00:00]} Qe7 {
[%emt 0:00:00]} 15. d4 {[%emt 0:00:00]} c5 {[%emt 0:00:00]} 16. Bb2 {[%emt 0:
00:00]} e5 {[%emt 0:00:00]} 17. d5 {[%emt 0:00:00]} f4 {[%emt 0:00:00]} 18.
exf4 {[%emt 0:00:00]} Rxf4 {[%emt 0:00:00]} 19. g3 {[%emt 0:00:00]} Rf7 {
[%emt 0:00:00]} 20. Bd3 {[%emt 0:00:00]} g6 {[%emt 0:00:00]} 21. Rae1 {[%emt 0:
00:00]} Qg5 {[%emt 0:00:00]} 22. Re4 {[%emt 0:00:00]} Raf8 {[%emt 0:00:00]} 23.
Bc1 {[%emt 0:00:00]} Qe7 {[%emt 0:00:00]} 24. Bh6 {[%emt 0:00:00]} Re8 {
[%emt 0:00:00]} 25. Rg4 {[%emt 0:00:00]} Nf8 {[%emt 0:00:00]} 26. h4 {[%emt 0:
00:00]} Kh8 {[%emt 0:00:00]} 27. h5 {[%emt 0:00:00]} gxh5 {[%emt 0:00:00]} 28.
Bg5 {[%emt 0:00:00]} Qc7 {[%emt 0:00:00]} 29. Rh4 {[%emt 0:00:00]} Nd7 {
[%emt 0:00:00]} 30. Rxh5 {[%emt 0:00:00]} Rg8 {[%emt 0:00:00]} 31. Kg2 {
[%emt 0:00:00]} Bc8 {[%emt 0:00:01]} 32. Bxh7 {[%emt 0:00:00]} Rxg5 {[%emt 0:
00:00]} 33. Rxg5 {[%emt 0:00:00]} Rxh7 {[%emt 0:00:00]} 34. Qxh7+ {[%emt 0:00:
00]} Kxh7 {[%emt 0:00:00]} 35. Rh1# {[%emt 0:00:12]} 1-0

[Event "I Liga Centralne Srbije"]
[Site "Bajina Bašta, Serbia"]
[Date "2020.10.14"]
[Round "7.6"]
[White "Radovic, Janko"]
[Black "Topalov, Aleksandar"]
[Result "1/2-1/2"]
[ECO "C10"]
[WhiteElo "2433"]
[BlackElo "2228"]
[Annotator "Knez"]
[PlyCount "27"]
[EventDate "2020.??.??"]
[TimeControl "90"]
[WhiteClock "1:00:47"]
[BlackClock "0:28:26"]

1. e4 {[%emt 0:00:00]} e6 {[%emt 0:00:00]} 2. d4 {[%emt 0:00:00]} d5 {[%emt 0:
00:00]} 3. Nc3 {[%emt 0:00:00]} h6 {[%emt 0:00:00]} 4. Bd3 {[%emt 0:00:00]} Nc6
{[%emt 0:00:00]} 5. Nf3 {[%emt 0:00:00]} Nb4 {[%emt 0:00:00]} 6. Be2 {[%emt 0:
00:00]} Nf6 {[%emt 0:00:00]} 7. e5 {[%emt 0:00:00]} Ne4 {[%emt 0:00:00]} 8. a3
{[%emt 0:00:00]} Nxc3 {[%emt 0:00:00]} 9. bxc3 {[%emt 0:00:00]} Nc6 {[%emt 0:
00:00]} 10. O-O {[%emt 0:00:00]} Na5 {[%emt 0:00:00]} 11. Be3 {[%emt 0:00:00]}
Bd7 {[%emt 0:00:00]} 12. Nd2 {[%emt 0:00:00]} c5 {[%emt 0:00:00]} 13. f4 {
[%emt 0:00:00]} Qc7 {[%emt 0:00:00]} 14. Bd3 {[%emt 0:00:00]} 1/2-1/2